Cogmind - Beta 15 @@@ ROGUE MODE // 2025.05.13 @ 00:44:22 Player: Wyvric Result: Destroyed by H-71 Marshal with Heavy Mass Driver Performance ------------- Evolutions (5) 2500 Regions Visited (4) 800 Robots Destroyed (46) 230 Value Destroyed (1514) 1514 Prototype IDs (16) 320 Alien Tech Used (0) 0 Bonus (800) 800 TOTAL SCORE: 6164 Bonus ------- Registered with UFD 300 Met Optimus in HQ 500 Cogmind --------- Core Integrity 0/1000 Matter 240/300 Energy 100/100 System Corruption 11% Temperature Cool (0) Movement Core (750) Ox14 Location -5/Factory Parts ------- > --- POWER (2) -------- (None) > --- PROPULSION (4) --- (None) > --- UTILITY (9) ------ High-capacity Storage Unit Enhanced Optical Array Improved Signal Interpreter Melee Analysis Suite System Shield > --- WEAPON (2) ------- Companion Sword > --- INVENTORY (20) --- Neutrino Core Advanced Heat Sink Large Storage Unit Matter Compressor (158) Improved Sensor Array Advanced Terrain Scanner Component Analysis Suite System Restoration Module System Restoration Module Advanced Plasma Cannon Advanced Plasma Cannon CPS Tube (2) CPS Tube (2) Multitool Peak State ------------ > --- POWER ------------ Light Angular Momentum Engine Fission Core > --- PROPULSION ------- Makeshift Leg Makeshift Leg Cargo Legs > --- UTILITY ---------- Advanced Heat Sink High-capacity Storage Unit Enhanced Optical Array Advanced Terrain Scanner Melee Analysis Suite Core Analyzer Microactuators Reactive Plating Advanced Shield Generator > --- WEAPON ----------- Companion Sword > --- INVENTORY -------- Light Angular Momentum Engine Overtuned Titanium Leg Wheel Wheel Linear Gravjet Advanced Heat Sink Large Storage Unit Matter Compressor Advanced ECM Suite Hacking Suite Component Analysis Suite Drone Bay Long-range Proton Cannon Coil Gun Coil Gun Overtuned Coil Gun Subdweller Shrapnel Launcher CPS Tube CPS Tube Multitool [Rating: 83] Favorites ----------- Power Makeshift Power Source Engine Makeshift Power Source Power Core Fission Core Propulsion Light Treads Treads Light Treads Leg Makeshift Leg Wheel Wheel Utility High-capacity Storage Unit Device Heat Sink Storage High-capacity Storage Unit Processor Melee Analysis Suite Hackware Hacking Suite Protection Reactive Plating Weapon Spread Laser Energy Gun Spread Laser Ballistic Gun Coil Gun Launcher Grenade Launcher Special Weapon Multitool Impact Weapon Mace Slashing Weapon Ripper Build | -11 -10 -10 -7 -5 ------- Run | Yrd Mat Sub Scr Fac Slots Evolved 10 | . . . . 10 Power 1 | . . . . 1 Propulsion 2 | . . . . 2 Utility 7 | . . . . 7 Weapon . | . . . . . Parts Attached 77 | 7 16 18 16 20 Power 10 | 1 2 3 2 2 Engine 8 | 1 2 3 2 . Core 2 | . . . . 2 Reactor . | . . . . . Propulsion 16 | 2 2 6 3 3 Treads 6 | 2 1 3 . . Leg 5 | . . . 2 3 Wheel 5 | . 1 3 1 . Hover . | . . . . . Flight . | . . . . . Utility 24 | 1 4 3 3 13 Device 11 | . 2 2 . 7 Storage 4 | 1 2 . 1 . Processor 4 | . . . . 4 Hackware 2 | . . . . 2 Protection 3 | . . 1 2 . Artifact . | . . . . . Weapon 27 | 3 8 6 8 2 Energy Gun 11 | 1 4 5 1 . Energy Cannon . | . . . . . Ballistic Gun 9 | 2 1 . 6 . Ballistic Cannon . | . . . . . Launcher 3 | . 2 . 1 . Special Weapon 1 | . . . . 1 Impact Weapon 1 | . 1 . . . Slashing Weapon 2 | . . 1 . 1 Piercing Weapon . | . . . . . Special Melee Weapon . | . . . . . Unidentified Prototypes 3 | . 1 1 . 1 Parts Lost 20 | . . 5 . 15 Power 4 | . . 1 . 3 Propulsion 7 | . . 3 . 4 Utility 8 | . . 1 . 7 Weapon 1 | . . . . 1 Highest Loss Streak 15 | . . 1 . 15 To Critical Strikes . | . . . . . Average Backups 17 | 5 12 19 18 18 Power . | . . 1 . 1 Propulsion 4 | 3 3 5 4 2 Utility 2 | . 1 1 4 8 Weapon 7 | . 7 9 5 3 Tool/Special . | . . . . . Unused Backups 44 | . 4 10 13 17 Power 3 | . . 1 1 1 Propulsion 11 | . 3 2 4 2 Utility 14 | . 1 2 3 8 Weapon 14 | . . 5 5 4 Tool/Special 2 | . . . . 2 Average Slot Usage (%) 97 | . 99 99 98 70 Engine 13 | . 13 13 14 3 Treads 16 | . 26 22 . . Leg 1 | . . . 2 14 Wheel 8 | . 1 5 24 . Device 7 | . 13 8 . 9 Storage 13 | . 14 14 14 5 Processor 1 | . . . . 16 Protection 5 | . . 5 14 4 Energy Gun 14 | . 8 23 8 . Ballistic Gun 7 | . 12 . 18 . Impact Weapon 1 | . 4 . . . Slashing Weapon 2 | . . 3 . 4 Peak Build Rating 83 | 6 12 22 38 83 Average Rating 21 | 5 9 17 26 73 On Entrance 13 | . 6 12 19 29 Naked Turns . | . . . . . Heaviest Build 86 | 12 52 54 72 86 Greatest Support 95 | 40 40 40 40 95 Greatest Overweight (x) 22 | . 5 5 22 14 Average Overweight (x) 1 | . . 2 2 . Largest Inventory Capacity 20 | 8 20 20 20 20 Average Capacity 18 | 7 14 20 20 20 Most Carried 20 | 7 20 20 20 20 Average Carried 17 | 5 12 19 19 18 Final Capacity 20 | 8 20 20 20 20 Final Carried 20 | 7 20 19 20 14 Class Distribution -------------------- 90% | Mutant 6% | Derelict-Mutant Dominant Class ---------------- Mutant | -10/Materials Mutant | -10/Subcaves Mutant | -7/Scraptown Derelict-Mutant | -5/Factory Resources | -11 -10 -10 -7 -5 ----------- Run | Yrd Mat Sub Scr Fac Matter Collected 1879 | 214 519 497 161 488 Remotely . | . . . . . Salvage Created 1541 | 66 314 635 . 526 Parts 97 | 4 22 34 . 37 Haulers Intercepted . | . . . . . Recyclers Shooed 2 | . 2 . . . Parts Field Recycled . | . . . . . Retrieved Matter . | . . . . . Parts Self-Destructed 6 | . . 6 . . Prevented . | . . . . . Kills | -11 -10 -10 -7 -5 ------- Run | Yrd Mat Sub Scr Fac Combat Hostiles Destroyed 40 | . 13 20 . 7 Melee 7 | . . 1 . 6 Guns 20 | . 9 11 . . AOE 10 | . 4 5 . 1 Classes Destroyed 9 | 1 2 3 . 3 Tunneler 4 | 3 1 . . . Operator 2 | . . . . 2 Swarmer 11 | . 8 3 . . Grunt 9 | . 5 3 . 1 Sentry 4 | . . 1 . 3 Hunter 1 | . . . . 1 Programmer 2 | . . . . 2 Artisan 1 | . . 1 . . Subdweller 13 | . . 13 . . Best Kill Streak 3 | 1 3 3 . 2 Combat Bots Only 3 | . 3 3 . 2 Max Kills in Single Turn 3 | 1 3 2 . 1 Gunslinging . | . . . . . Exploded 3 | . 3 2 . 1 Melee 1 | . . 1 . 1 Uniques/NPCs Destroyed . | . . . . . Combat | -11 -10 -10 -7 -5 -------- Run | Yrd Mat Sub Scr Fac Hostile Shots Fired 329 | . 81 82 . 166 Missed 90 | . 18 26 . 46 Hits 239 | . 63 56 . 120 Projectile 239 | . 63 56 . 120 AOE 1 | . . 1 . . Critical Strikes 10 | . 1 1 . 8 Damage Taken 4629 | . 550 1009 . 3070 Core 1213 | . 46 129 . 1038 Absorbed by Shields 173 | . . . . 173 Ignored by Resistances 116 | . . . . 116 Regen/Repaired (Parts) 237 | . . . 237 . Core Remaining (%) 65 | 100 . . 30 . Volleys Fired 97 | 18 34 43 . 2 Largest 2 | 2 2 2 . 1 Hottest 130 | 60 90 130 . 40 Shots Fired 189 | 36 65 86 . 2 Gun 172 | 36 58 78 . . Cannon . | . . . . . Launcher 17 | . 7 8 . 2 Special . | . . . . . Kinetic 74 | 34 38 . . 2 Thermal 38 | . . 38 . . Explosive 15 | . 7 8 . . Electromagnetic 62 | 2 20 40 . . Robot Hit Streak 19 | 10 8 19 . 5 Robot Miss Streak 11 | 3 5 11 . . Penetration Max . | . . . . . Secondary Targets 2 | . . 2 . . Max Gunslinging Chain 1 | . . 1 . . Shots Hit Robots 175 | 23 34 80 . 38 Core Hits 102 | 4 17 66 . 15 Critical Kills . | . . . . . Critical Parts Destroyed 1 | . 1 . . . Critical Strikes 1 | . 1 . . . Destroy 1 | . 1 . . . Melee Attacks 85 | . 7 25 . 53 Impact 7 | . 7 . . . Slashing 78 | . . 25 . 53 Piercing . | . . . . . Sneak Attacks 3 | . . 1 . 2 Combat Hostiles . | . . . . . Follow-up Attacks . | . . . . . Damage Inflicted 4020 | 241 605 1512 . 1662 Guns 1744 | 241 438 1065 . . Cannons . | . . . . . Explosions 769 | . 143 349 . 277 Melee 1483 | . . 98 . 1385 Ramming 24 | . 24 . . . Kinetic 734 | 229 228 . . 277 Thermal 553 | . 35 518 . . Explosive 457 | . 108 349 . . Electromagnetic 769 | 12 210 547 . . Impact . | . . . . . Slashing 1483 | . . 98 . 1385 Piercing . | . . . . . Highest Corruption 11 | . . . . 11 Average Corruption 5 | . . . . 5 Corruption Purged . | . . . . . Corruption Blocked . | . . . . . Effects 4 | . . . . 4 Matter Fused 3 | . . . . 3 Heat Flow Errors 1 | . . . . 1 Overload Shots . | . . . . . Overflow Damage 143 | . 5 24 . 114 Projectiles . | . . . . . Explosions 43 | . 5 . . 38 Melee 100 | . . 24 . 76 Knockbacks . | . . . . . Impact . | . . . . . Kinetic . | . . . . . Secondary . | . . . . . Self-Inflicted Damage 55 | . . . . 55 Shots 2 | . . . . 2 Rammed 8 | . 8 . . . Targets Rammed 9 | . 9 . . . Kicked . | . . . . . Crushed 1 | . 1 . . . Highest Temperature 246 | . 30 246 . 236 Average Temperature 72 | . 14 88 . 89 Received Heat Transfer 573 | . 114 204 . 255 Siege Activations . | . . . . . Martial Activations . | . . . . . Shielding Activations . | . . . . . Robots Disrupted . | . . . . . Combat Hostiles . | . . . . . Robots Corrupted 3 | . . 3 . . Combat Hostiles 3 | . . 3 . . Parts Fried 13 | . 1 12 . . Impact Corruptions . | . . . . . Robots Melted . | . . . . . Combat Hostiles . | . . . . . Parts Melted . | . . . . . Heat Transferred 705 | . 50 655 . . Parts Sabotaged . | . . . . . Parts Stolen . | . . . . . Parts Stripped . | . . . . . Power Chain Reactions 1 | . 1 . . . Alert | -11 -10 -10 -7 -5 ------- Run | Yrd Mat Sub Scr Fac Maximum Alert Level 1 | . 1 . . . Low Security (%) 87 | 100 82 . . 100 Level 1 12 | . 17 . . . Level 2 . | . . . . . Level 3 . | . . . . . Level 4 . | . . . . . Level 5 . | . . . . . High Security . | . . . . . Max Security . | . . . . . Peak Influence 226 | 5 226 . . 63 Initial . | . . . . . Average 56 | 1 72 . . 20 Influence Increases 1099 | 15 551 210 . 323 Destroy 0b10 Robot/C 540 | . 260 140 . 140 Destroy 0b10 Robot/NC 30 | 15 5 . . 10 Destroy Leader 100 | . 40 10 . 50 Successful Hack 39 | . 25 . . 14 Select Force Hacks 60 | . 60 . . . Disable Machine 45 | . 15 . . 30 Destroy Structure 105 | . 41 . . 64 Partial Spotted 15 | . . . . 15 Lose Combat Pursuer 165 | . 105 60 . . Influence Decreases 1097 | 15 371 277 113 321 Entered New Map 200 | . . 87 113 . Time Decay 778 | 15 371 170 . 222 Lost Part 119 | . . 20 . 99 Squads Dispatched 7 | . 2 . . 5 Investigation 2 | . 2 . . . Extermination 2 | . . . . 2 Reinforcement 3 | . . . . 3 Assault . | . . . . . Garrison . | . . . . . Intercept . | . . . . . Searches Triggered . | . . . . . Construction Impeded . | . . . . . Haulers Reinforced . | . . . . . Active Scanning Responses . | . . . . . Cargo Convoy Interrupts . | . . . . . Stealth | -11 -10 -10 -7 -5 --------- Run | Yrd Mat Sub Scr Fac Distress Signals 5 | . 2 . . 3 Communications Jammed . | . . . . . Distress Signals . | . . . . . Times Spotted 77 | . 38 21 . 18 Peak Tracking Total 6 | . 4 4 . 6 Tactical Retreats 9 | . 7 2 . . Traps | -11 -10 -10 -7 -5 ------- Run | Yrd Mat Sub Scr Fac Traps Triggered 1 | . 1 . . . Indirectly . | . . . . . Trap Hack Attempts . | . . . . . Triggered . | . . . . . Disarmed . | . . . . . Reprogrammed . | . . . . . Reused . | . . . . . Traps Extracted . | . . . . . Installed . | . . . . . Triggered . | . . . . . Machines | -11 -10 -10 -7 -5 ---------- Run | Yrd Mat Sub Scr Fac Machines Disabled 4 | . 1 1 . 2 Max in Single Turn 1 | . 1 1 . 1 Machines Repaired . | . . . . . Machines Dismantled . | . . . . . Machines Sabotaged . | . . . . . Overloaded Fab Kills . | . . . . . Hacking | -11 -10 -10 -7 -5 --------- Run | Yrd Mat Sub Scr Fac Machines Accessed 21 | . 11 3 4 3 Terminals 11 | . 8 . . 3 Fabricators . | . . . . . Repair Stations 1 | . 1 . . . Recycling Units 2 | . 2 . . . Scanalyzers . | . . . . . Garrison Access . | . . . . . Total Hacks 87 | . 38 11 28 10 Successful 61 | . 16 11 28 6 Failed 26 | . 22 . . 4 Catastrophic . | . . . . . Database Lockouts . | . . . . . Manual 40 | . 31 . . 9 Terminals 44 | . 34 . . 10 Fabricators . | . . . . . Repair Stations 2 | . 2 . . . Recycling Units 2 | . 2 . . . Scanalyzers . | . . . . . Garrison Access . | . . . . . Terminal Hacks 44 | . 4 11 28 1 Record 36 | . . 9 27 . Robot Analysis 3 | . 3 . . . Prototype ID Bank 1 | . 1 . . . Open Door 2 | . . 1 1 . Branch Access Points 1 | . . . . 1 Proto ID Catalog 1 | . . 1 . . Fabricator Hacks . | . . . . . Repair Station Hacks 1 | . 1 . . . Scan Component 1 | . 1 . . . Recycling Unit Hacks . | . . . . . Scanalyzer . | . . . . . Garrison Access Hacks . | . . . . . Unauthorized Hacks 16 | . 11 . . 5 Terminals 14 | . 9 . . 5 Track 1 | . . . . 1 Botnet 6 | . 4 . . 2 Operators 1 | . . . . 1 Skim 6 | . 5 . . 1 Fabricators . | . . . . . Repair Stations . | . . . . . Recycling Units 2 | . 2 . . . Tunnel 2 | . 2 . . . Scanalyzers . | . . . . . Garrison Access . | . . . . . Data Cores Recovered . | . . . . . Used . | . . . . . Hacking Detections 11 | . 9 . . 2 Full Trace Events . | . . . . . Feedback Events . | . . . . . Feedback Blocked . | . . . . . Robot Schematics Acquired . | . . . . . Robots Built . | . . . . . Authchips . | . . . . . Time . | . . . . . Total Robot Build Rating . | . . . . . Part Schematics Acquired . | . . . . . Parts Built . | . . . . . Authchips . | . . . . . Time . | . . . . . Total Part Build Rating . | . . . . . Parts Repaired . | . . . . . Time . | . . . . . Parts Recycled . | . . . . . Recycled Matter . | . . . . . Retrieved Matter . | . . . . . Retrieved Components . | . . . . . Parts Scanalyzed . | . . . . . Part Schematics Acquired . | . . . . . Parts Damaged . | . . . . . Bothacking | -11 -10 -10 -7 -5 ------------ Run | Yrd Mat Sub Scr Fac Used RIF Installer . | . . . . . Robots Hacked . | . . . . . Non-combat . | . . . . . Combat . | . . . . . Robot Hacks Applied . | . . . . . Relay Couplers Released . | . . . . . Fabnet Peak Effective % . | . . . . . Robots Rewired . | . . . . . Allies Hacked . | . . . . . Hacks Repelled . | . . . . . Allies | -11 -10 -10 -7 -5 -------- Run | Yrd Mat Sub Scr Fac Total Allies . | . . . . . Largest Group . | . . . . . Highest-Rated Group . | . . . . . Highest-Rated Ally . | . . . . . Total Orders 1 | . . . . 1 RETURN 1 | . . . . 1 Ally Attacks . | . . . . . Total Damage . | . . . . . Kills . | . . . . . Allies Corrupted 1 | . . . . 1 Allies Melted . | . . . . . Intel | -11 -10 -10 -7 -5 ------- Run | Yrd Mat Sub Scr Fac Active Infowar (turns) 3286 | . 383 2177 . 726 Optics 1541 | . . 815 . 726 Sensors 114 | . . . . 114 Terrain 163 | . . . . 163 Seismic 1745 | . 383 1362 . . Robot Analysis Total 3 | . 3 . . . Derelict Logs Recovered 5 | . . 1 4 . Drone Launches 4 | . . . . 4 Drone Recoveries 2 | . . . . 2 Exploration | -11 -10 -10 -7 -5 ------------- Run | Yrd Mat Sub Scr Fac Turns Passed 10501 | 221 2340 4747 2459 734 Spaces Moved 5719 | 98 1133 2234 1863 391 Core 6 | 3 . . 2 1 Treads 2231 | 95 1007 1129 . . Legs 506 | . . . 116 390 Wheels 2976 | . 126 1105 1745 . Hover . | . . . . . Flight . | . . . . . Fastest Speed 50 | 50 155 110 100 123 Average Speed 163 | 156 172 196 125 136 Slowest Speed 1150 | 160 240 250 1150 750 Overloaded Moves . | . . . . . Propulsion Burnouts . | . . . . . Robots Hopped . | . . . . . Potential Cave-ins . | . . . . . Cave-ins Triggered . | . . . . . Exploration Rate (%) 60 | 6 98 91 96 13 Regions Visited 4 Branch Regions 2 Pre-discovered Areas 5 | . 3 1 1 . Known Exits Taken . | . . . . . Unknown Exits Taken 4 | 1 1 1 1 . Scrap Searched 13 | . . 4 9 . Spaces Dug 40 | . 21 9 . 10 Terrain Destroyed 132 | . 61 41 . 30 Melee 22 | . 3 9 . 10 Projectile . | . . . . . AOE 110 | . 58 32 . 20 Terrain Rammed . | . . . . . Walls Destroyed . | . . . . . Machines Disabled . | . . . . . Actions | -11 -10 -10 -7 -5 --------- Run | Yrd Mat Sub Scr Fac Total 6558 | 129 1436 2464 1996 533 Wait 331 | . 192 62 57 20 Move 5715 | 97 1132 2233 1862 391 Hop . | . . . . . Pick Up 100 | 7 22 29 23 19 Fast Attach 22 | 6 5 3 5 3 Attach 21 | . . 5 2 14 Detach 5 | . . . 2 3 Swap 86 | 1 21 35 15 14 Drop 86 | . 14 29 30 13 Fire 97 | 18 34 43 . 2 Melee 85 | . 7 25 . 53 Ram . | . . . . . Kick . | . . . . . Crush 9 | . 9 . . . Escape Stasis . | . . . . . Rewire . | . . . . . Trap . | . . . . . Miscellaneous 1 | . . . . 1 Route ------- -11/Scrapyard -10/Materials (discovered 6 exits: [*Mat x3] / [*Min x2] / *Sub) -10/Subcaves (discovered 3 exits: [*Mat x2] / *Scr) -7/Scraptown (discovered 2 exits: *Fac x2) -5/Factory (discovered 4 exits: Fac x2 / Upp x2) History --------- Turn | Location | Event 8 | -11/Scrapyard | Discovered new exit (range 14) 222 | -11/Scrapyard | Entered Materials 314 | -10/Materials | Build established: Mutant 397 | -10/Materials | Discovered new exit (range 13) 870 | -10/Materials | Discovered new exit (range 16) 889 | -10/Materials | Discovered new exit (range 5) 1044 | -10/Materials | Discovered new exit (range 16) 1422 | -10/Materials | Derelicts attacked the area 1959 | -10/Materials | Discovered new exit (range 15) 2120 | -10/Materials | Discovered new exit (range 12) 2191 | -10/Materials | Learned 4 Subcaves zone layouts 2229 | -10/Materials | Learned location of 1 exit from Recycling 2257 | -10/Materials | Learned 4 Recycling zone layouts 2276 | -10/Materials | Learned location of Recycling (-7) 2303 | -10/Materials | Learned location of 1 exit from Recycling 2325 | -10/Materials | Learned Storage trap positions 2562 | -10/Materials | Entered Subcaves 2563 | -10/Subcaves | Approached by a straggling Scientist 2631 | -10/Subcaves | Ambushed by Subdweller buried in earth 2742 | -10/Subcaves | Shifting Twisted Machinery released Ripper 2752 | -10/Subcaves | Scientist uncovered a shortcut to Scraptown 2765 | -10/Subcaves | Shifting Twisted Machinery released Riot Gun 2798 | -10/Subcaves | Discovered new exit (range 3) 3372 | -10/Subcaves | A Subdweller sparked back to life 3372 | -10/Subcaves | A Subdweller sparked back to life 3372 | -10/Subcaves | A Subdweller sparked back to life 3405 | -10/Subcaves | Found Prototype Device 3406 | -10/Subcaves | Identified Power Bank 3408 | -10/Subcaves | Attached Power Bank, gained temporary slots: Power x3 3628 | -10/Subcaves | Visited 4L-MR0's lab 3650 | -10/Subcaves | Found Cargo Legs 4467 | -10/Subcaves | Discovered new exit (range 5) 4914 | -10/Subcaves | Learned location of Zion (-6) 4914 | -10/Subcaves | Met a Zionite searching for "candidates" 5180 | -10/Subcaves | Shifting Twisted Machinery released Mak. Shrapnel Gun 5188 | -10/Subcaves | Shifting Twisted Machinery released Sub. Machine Gun 5615 | -10/Subcaves | Shifting Twisted Machinery released Flamer 5641 | -10/Subcaves | Shifting Twisted Machinery released Barrage Gun 5838 | -10/Subcaves | Core integrity fell below 50% 7309 | -10/Subcaves | Entered Scraptown 7461 | -7/Scraptown | Learned location of Extension (-6) 7717 | -7/Scraptown | Discovered new exit (range 3) 7790 | -7/Scraptown | Scanned Subdweller tech in exchange for log data 7792 | -7/Scraptown | Learned Research interactive machine intel 7793 | -7/Scraptown | Learned Research trap positions 7794 | -7/Scraptown | Learned 8 Factory zone layouts 7795 | -7/Scraptown | Learned Research emergency access door positions 7831 | -7/Scraptown | Visited Bundlers 7888 | -7/Scraptown | Visited CR-KLE's Repair Center 7896 | -7/Scraptown | Visited Science Testing Area 8012 | -7/Scraptown | Visited Awakened 8041 | -7/Scraptown | Visited CPS Storage 8133 | -7/Scraptown | Visited Supply Room 8161 | -7/Scraptown | Visited Symbiants 8417 | -7/Scraptown | Visited UFD Registry 8417 | -7/Scraptown | Registered with UFD as "Cargocell" 8457 | -7/Scraptown | Visited LU-1G1's Boring Crew 8517 | -7/Scraptown | Visited Research Penetration Think Tank 8556 | -7/Scraptown | Visited Supply Room 8756 | -7/Scraptown | Visited Scrapoid Research Area 8785 | -7/Scraptown | Visited Scrap Suit Storage 8815 | -7/Scraptown | Visited Sword Containment 8849 | -7/Scraptown | Visited Modified Component R&D 8947 | -7/Scraptown | Discovered new exit (range 5) 9091 | -7/Scraptown | Visited Chapter 10 9150 | -7/Scraptown | Visited Curators Association 9321 | -7/Scraptown | CR-KLE repaired 7 parts 9694 | -7/Scraptown | Met Optimus 9694 | -7/Scraptown | Accepted into 0bPrime 9768 | -7/Scraptown | Entered Factory 9768 | -5/Factory | Evolved 10 slots: Power x1, Propulsion x2, Utility x7 9769 | -5/Factory | Identified exit to Factory 9769 | -5/Factory | Attached Cargo Legs, gained temporary slots: Utility x2 10086 | -5/Factory | Identified exit to Upper Caves 10457 | -5/Factory | Core integrity fell below 50% 10489 | -5/Factory | Core integrity fell below 20% 10495 | -5/Factory | System corruption reached 10% 10502 | -5/Factory | Destroyed by H-71 Marshal with Heavy Mass Driver Last Messages --------------- 10489_ K-01 Serf destroyed. 10490_ U-05 Engineer lays Concrete. 10491_ Sub. Shrapnel Launcher destroyed. 10492_ U-05 Engineer lays Concrete. 10492_ Slug penetrates Wall. 10492_ Penetrated by Slug. 10492_ U-05 Engineer destroyed. 10493_ U-05 Engineer lays Concrete. 10493_ Knocked back. 10494_ W-25 Informer sends out distress signal. 10495_ U-05 Engineer lays Concrete. 10495_ Slug penetrates Wall. 10496_ System corrupted: Matter fused (-10). 10496_ U-05 Engineer lays Concrete. 10497_ Hacking Suite destroyed. 10497_ Core Analyzer destroyed. 10497_ U-05 Engineer lays Concrete. 10500_ Slug penetrates Wall. 10500_ Flexi-carbon Leg destroyed. 10501_ U-05 Engineer lays Concrete. Map ----- +----------------------------------------------------+ | ?????????????????????????????????????????????????? | | ?????????????????????????????????????????????????? | | ?????????????????????????????????????????????????? | | ???????????????????????????????#?????????????????? | | ?????????????????????????? ??? ???????? ????????? | | ?????????????????????????# ??? ???????? #??????? | | ??????????????? ????????# "?? "?? ??"? #??????? | | ??????????????? ???????# "?? "?" ??Y" #??????? | | ???????????????? ??????# "?" """ ?? " #??????? | | ????????????????? ?????# ? ? #??????? | | ?????????????????? ????# """ """ "?" ??????? | | ??????????????????? ???# """ """ """ #??????? | | ?????????????########+#### """ """ """ #??????? | | ?????????????? #??????? | | ?????????????? """ """ """ #??????? | | ?????????????? !! """ """ """ #??????? | | ???????????????""" != """ """ """ #??????? | | ???????????????""" #??????? | | ???????????????""" u #??????? | | ?????????????"? "" #??????? | | ?????????????" "" #;;;;;;;### #??????? | | ??????????????? ; p%p H# #??????? | | ???????????????""" """ # %= # #??????? | | ???????????????""" """ ; *% # ^^!! #????" " | | ???????????""" """ """h % % uu%|# =^* ## | | ?????????" "" ;@ " # %%[% #" """ " | | ?????????" "" h# " "" +!= ## """ " | | ????????? ??# """ #%[* #??????? | | ????????? ????# %#!! #??????? | | ??????????########??????# # #?####+# | | ????????????????????????# !!! # ## | | ????????????????????????# !!! # | | ????????????????????????# !!! # | | ????????????????????????# # | | ????????????????????????# = # | | ????????????????????????# # | | ????????????????????????# # | | ????????????????????????########### | | ??????????????????????????????????# ###### | | ??????????????????????????????????# #?????###### | | ??????????????????????????????????# #??????????? | | ??????????????????????????????????# #??????????? | | ??????????????????????????????????# #??????????? | | ??????????????????????????????????# #??????????? | | ??????????????????????????????????# #??????????? | | ??????????????????????????????????# #??????????? | | ??????????????????????????????????# #??????????? | | ??????????????????????????????????# #??????????? | | ????????????????????????????????### #??????????? | | ???????????????????????????????##"" ########???? | +----------------------------------------------------+ Best States ------------- Heat Dissipation 59 Energy Generation 31 Energy Capacity 370 Matter Stores 300 Matter Capacity 300 Sight Range 22 Robot Scan Range 15 Terrain Scan Range 20 Terrain Scan Density 10 Armor Coverage 150 Resistance: KI 20 Melee Speed Boost 20 Phase Shifting 5 Evasion (%) 55 Melee Accuracy 5 Core Analysis 6 Recoil Reduction 2 Offensive Hacking 10 Defensive Hacking 10 Item Schematics ----------------- None Robot Schematics ------------------ None Fabricated ------------ Nothing Repaired ---------- Nothing Alien Tech Used ----------------- None Achievements -------------- None Challenges ------------ None Game ------ Seed ZioniteFluxLattice Manual? 0 Play Time 01:17:16 Cumulative 570.8 hours Start 2025.05.12 @ 23:16:33 End 2025.05.13 @ 00:44:22 Sessions 1 Manual Loads 0 Difficulty Rogue Special Mode None Game No. 127 Rogue 127 Adventurer 0 Explorer 0 Win Type - Total 33 Types 10/3/7/1/1/1/8/1/1/0 Lore% 64 Gallery% 78 Achievement% 79 Wizard Run 0 Options --------- Layout 1 ASCII 0 Keyboard 0 Movement Numpad Keybinds 0 Fullscreen 1 Font 24/Smallcaps Map View 50x35 Zoom Use 0% Tactical HUD 1 Map Filters NONE Filters NONE Steam 1 RUN: 287416e7-1435-4dfa-b4d8-e73394b3352a